[Event "CCC-GM 2022"]
[Site "Ballerup"]
[Date "2022.05.25"]
[Round "1.1"]
[White "Olsen, Filip Boe"]
[Black "Haubro, Martin"]
[Result "0-1"]
[ECO "D02"]
[WhiteElo "2407"]
[BlackElo "2428"]
[Annotator "TA"]
[PlyCount "106"]
[EventDate "2022.05.25"]
[EventType "tourn"]
[EventCountry "DEN"]
[SourceTitle "playchess.com"]
[Source "ChessBase"]
[SourceQuality "1"]
[TimeControl "5400+30"]

{[%evp 9,106,0,0,0,0,0,0,0,0,0,0,-13,-8,-14,-33,-17,-18,-39,-59,-24,-38,-56,0,-36,-16,-77,-72,-71,-78,-129,-123,-139,-125,-144,-159,-150,-146,-203,-180,-187,-185,-191,-184,-349,-279,-289,-287,-279,-269,-288,-291,-304,-304,-316,-292,-304,-286,-337,-338,-337,-271,-308,-308,-291,-305,-326,-203,-288,-226,-342,-344,-502,-467,-537,-506,-540,-523,-504,-479,-686,-662,-691,-610,-710,-661,-753,-204,-800,-785,-753,-684,-645,-645,-29987,-29988,-29985,-29980,-5728,-5724]} 1. d4 {[%emt 0:00:50]} Nf6 {[%emt 0:00:05]} 2. Nf3 {[%emt 0:00:08]} d5 {[%emt 0:00:12]} 3. Bf4 {[%emt 0:00:17]} c5 {[%emt 0:00:52]} 4. e3 {[%emt 0:00:12]} Nc6 {[%emt 0:00:06]} 5. Nbd2 {[%emt 0:00:09]} Qb6 {[%emt 0:04:05][%csl LRb2,LRd4][%cal Rc5d4]} 6. dxc5 {[%emt 0:00:22] D02: 1 d4 d5 2 Nf3 sidelines, including 2...Nf6 3 g3 and 2...Nf6 3 Bf4.} Qxb2 {[%emt 0:00:16]} 7. Rb1 {[%emt 0:00:09]} Qc3 {[%emt 0:00:05]} 8. Bb5 {[%emt 0:00:31] The position is equal.} e6 {[%emt 0:02:03] 8...g6 gains popularity.} 9. O-O {[%emt 0:00:13][%cal Oe3e4]} Be7 {[%emt 0:04:02]} 10. e4 {[%emt 0:06:51]} O-O {[%emt 0:02:07]} 11. e5 {[%emt 0:00:14]} Nd7 {[%emt 0:00:35][%cal Bf6d7,Bd7f8,Bf8g6][%mdl 32]} 12. Nb3 {[%emt 0:00:12]} Qb4 {[%emt 0:00:37]} (12... Ndxe5 $2 13. Nxe5 Nxe5 14. Bd2 Nf3+ 15. Qxf3 $18) (12... Nxc5 $2 13. Bd2 Ne4 14. Bxc3 $18) (12... Ncxe5 $2 13. Nxe5 Nxc5 14. Nxc5 Qxc5 15. Re1 $18) 13. Nfd4 {[%emt 0:00:30]} Nxd4 $1 {[%emt 0:01:21]} (13... Ndxe5 14. c3 Qxc3 15. Bd2 Qxd4 16. Nxd4 Nxd4 17. Ba4 $16) (13... Nxc5 $2 14. Bd2 Qa3 15. Bc1 (15. Nxc6 bxc6 16. Bxc6 Ba6 $14) 15... Qxa2 16. Ra1 Nxd4 17. Rxa2 $18) (13... Ncxe5 $2 14. c3 Qa3 15. Bc1 Qxa2 16. Rb2 Qxb2 17. Bxb2 $18) 14. Nxd4 {[%emt 0:00:09]} Qxc5 {[%emt 0:00:05]} 15. Re1 {[%emt 0:06:58]} Rd8 {[%emt 0:07:39]} 16. Rb3 {[%emt 0:11:08]} Nf8 {[%emt 0:28:00] [#]} 17. Ree3 $146 {[%emt 0:10:25]} (17. Rh3 $11) ({Predecessor:} 17. Rh3 f5 18. Be3 Qc7 19. f4 Bc5 20. Bd3 Qb6 21. Qa1 Bd7 22. Rb1 Qc7 23. Qc3 {½-½ (50) Obgolts,E (2437)-Oganian,M (2437) Sochi 2022}) 17... Ng6 $17 {[%emt 0:07:21] Black keeps a firm grip on the game.} 18. Rec3 {[%emt 0:04:13]} Qb6 {[%emt 0:01:14]} 19. Be3 {[%emt 0:03:44]} ({White should try} 19. Bg3) 19... Qa5 $1 {[%emt 0:00:18]} (19... Nxe5 20. Nf5 $1 {[%mdl 512]} d4 21. Nxe7+ Kf8 22. Rd3 (22. Nxc8 $2 dxe3 23. Qf1 exf2+ 24. Qxf2 Qxf2+ 25. Kxf2 Raxc8 $19) 22... Nxd3 23. Bxd3 $14) 20. Bd2 {[%emt 0:07:33][%cal Oc3c8] [#]} Bb4 $1 {[%emt 0:07:40][%cal Be7b4,Bb4d2,Bd2c3][%mdl 32]} ({Weaker is} 20... Qxa2 21. Rb1 (21. Rc7 a6 $17) 21... a6 22. Ra1 axb5 23. Rxa2 Rxa2 24. f4 $15) 21. Rxc8 {[%emt 0:33:55]} Bxd2 {[%emt 0:00:17]} 22. Rxa8 {[%emt 0:00:07]} Rxa8 {[%emt 0:00:04]} 23. Bd3 {[%emt 0:00:15]} (23. Bf1 $17) 23... Bc3 {[%emt 0:09:07]} 24. Nf3 {[%emt 0:02:56] [#]} b6 {[%emt 0:01:15]} ({Not} 24... Nxe5 25. Nxe5 Bxe5 26. Rxb7) 25. h4 {[%emt 0:01:51]} Rc8 {[%emt 0:01:58]} 26. Qe2 $2 {[%emt 0:02:06]} (26. a3 {keeps fighting.}) 26... Qxa2 {[%emt 0:01:49]} 27. g3 {[%emt 0:04:56] [#]} Nxe5 $1 {[%emt 0:03:58][%mdl 512]} 28. Nxe5 {[%emt 0:02:12][%cal Od3h7] Black must now prevent Bxh7+!} Qa1+ {[%emt 0:00:05]} 29. Kg2 {[%emt 0:00:40][%cal Od3h7] Strongly threatening Bxh7+!} Bxe5 {[%emt 0:00:07]} 30. Qf3 {[%emt 0:00:59]} g6 {[%emt 0:04:07][%cal Bg7g6,Bg6g5][%mdl 32]} 31. h5 {[%emt 0:00:33]} Bg7 {[%emt 0:00:09]} 32. Rb4 {[%emt 0:00:09]} Qf6 {[%emt 0:00:47]} 33. Rf4 {[%emt 0:00:05]} Qe7 {[%emt 0:00:07]} 34. Rh4 {[%emt 0:00:34]} Rd8 {[%emt 0:00:52]} 35. Qg4 {[%emt 0:00:47]} g5 {[%emt 0:05:52]} 36. Rh1 {[%emt 0:00:01]} h6 {[%emt 0:00:07]} 37. Re1 {[%emt 0:00:42]} e5 {[%emt 0:03:45]} 38. f3 {[%emt 0:00:31]} (38. c4 $142) 38... Qd7 {[%emt 0:01:37]} 39. Bf5 {[%emt 0:00:13]} (39. Qxd7 $142 Rxd7 40. c4) 39... Qc6 $19 {[%emt 0:00:15]} 40. Qb4 {[%emt 0:00:38]} (40. Rd1 {might work better.}) 40... a5 {[%emt 0:00:56]} 41. Qb3 {[%emt 0:00:50]} b5 {[%emt 0:00:20][%cal Bb6b5,Bb5b4][%mdl 32]} 42. Rd1 {[%emt 0:00:15]} Bf6 {[%emt 0:00:47]} 43. Bd3 {[%emt 0:00:18]} b4 {[%emt 0:00:31] And now ...e4 would win.} 44. Bf5 {[%emt 0:00:16]} (44. Rf1 $142) 44... Kg7 {[%emt 0:00:11]} 45. Kh3 {[%emt 0:00:20]} Qb5 {[%emt 0:01:49]} 46. Bd3 {[%emt 0:00:39]} Qc5 {[%emt 0:01:18][%cal Oe5e4] aiming for ...e4!} 47. Bf5 {[%emt 0:00:11] Inhibits e4.} Qc3 $2 {[%emt 0:01:28]} (47... e4 48. Qb1 exf3) 48. Qa4 $2 {[%emt 0:00:08]} (48. Qxc3 bxc3 49. Ra1) 48... Qxf3 {[%emt 0:00:47]} 49. Bg4 {[%emt 0:00:01]} Qf2 {[%emt 0:00:19] ...e4 is the strong threat.} 50. Qxa5 {[%emt 0:00:16]} e4 {[%emt 0:01:20][%cal Of6e5,Be5e4,Be4d3][%mdl 32] ( -> ...Be5!)} 51. Rxd5 {[%emt 0:00:31] [#]} Be5 $1 {[%emt 0:00:10][%csl Ge5][%cal Rf2g3][%mdl 512]} 52. Rd3 {[%emt 0:01:35]} exd3 {[%emt 0:00:34][%csl Ge5][%cal Rf2g3]} 53. Qxe5+ {[%emt 0:00:08]} Qf6 {[%emt 0:00:08] Weighted Error Value: White=0.33/Black=0.12 (very precise)} 0-1

[Event "CCC-GM 2022"]
[Site "Ballerup"]
[Date "2022.05.25"]
[Round "1.2"]
[White "Stefansson, Vignir Vatnar"]
[Black "Heimisson, Hilmir Freyr"]
[Result "1/2-1/2"]
[ECO "D30"]
[WhiteElo "2496"]
[BlackElo "2323"]
[Annotator "TA"]
[PlyCount "100"]
[EventDate "2022.05.25"]
[EventType "tourn"]
[EventCountry "DEN"]
[SourceTitle "playchess.com"]
[Source "ChessBase"]
[SourceQuality "1"]
[TimeControl "5400+30"]

{[%evp 10,100,0,-14,0,-6,-22,-18,-17,-33,-14,-13,-12,-12,-12,-56,-47,-81,-71,-111,-116,-128,-76,-80,-41,-57,-26,-41,-42,-47,-33,-35,-16,-71,-74,-77,-79,-108,-83,-90,-80,-109,-86,-107,-86,-86,-95,-99,-60,-141,-131,-124,-126,-131,-121,-131,-103,-103,-104,-172,-172,-260,-258,-243,-243,-275,-277,-272,-265,-228,-230,-250,-196,-212,-40,-47,0,0,0,0,0,0,0,0,0,0,0,0,0,0,0,0,0]} 1. d4 {[%emt 0:00:13]} Nf6 {[%emt 0:02:41]} 2. c4 {[%emt 0:00:29]} e6 {[%emt 0:00:38]} 3. Nf3 {[%emt 0:00:40]} d5 {[%emt 0:00:51]} 4. Bg5 {[%emt 0:02:38]} dxc4 {[%emt 0:07:31]} 5. Qa4+ {[%emt 0:04:14]} Nbd7 {[%emt 0:07:29]} 6. Qxc4 {[%emt 0:05:58]} b5 {[%emt 0:04:47] [#] D30: Queen's Gambit Declined: Systems without Nc3.} 7. Bxf6 $146 {[%emt 0:15:35]} ({Predecessor:} 7. Qc6 Rb8 8. Bf4 Bb7 9. Qxc7 Bb4+ 10. Nbd2 Qe7 11. a3 Nd5 12. Qc2 Nxf4 13. axb4 O-O 14. e3 {0-1 (28) Ivanov,A-Firman,N (2476) Kharkov 2001}) 7... gxf6 {[%emt 0:00:54]} 8. Qc2 {[%emt 0:02:18]} c5 {[%emt 0:11:08]} 9. e3 {[%emt 0:02:26]} Qa5+ {[%emt 0:01:25]} 10. Qd2 {[%emt 0:02:42]} Qxd2+ {[%emt 0:05:33]} 11. Nbxd2 {[%emt 0:00:05]} a6 {[%emt 0:00:26]} 12. a4 {[%emt 0:00:09]} bxa4 {[%emt 0:01:32]} 13. Bd3 {[%emt 0:05:07]} cxd4 {[%emt 0:03:20]} 14. Nxd4 {[%emt 0:00:11]} Nc5 {[%emt 0:00:30]} 15. Bc2 {[%emt 0:00:01]} Bd7 {[%emt 0:00:41]} (15... Rb8 $142 16. Rb1 e5) 16. O-O $17 {[%emt 0:00:02]} Rb8 {[%emt 0:06:38] ...e5 is the strong threat.} 17. Rfb1 $1 {[%emt 0:00:21]} Bd6 {[%emt 0:05:06]} 18. b4 {[%emt 0:07:45]} axb3 {[%emt 0:00:18]} 19. N2xb3 {[%emt 0:00:03]} Ke7 $36 {[%emt 0:03:36][%mdl 2048] Black is more active.} 20. Nxc5 {[%emt 0:04:43]} Bxc5 {[%emt 0:00:18] A strong pair of Bishops.} 21. Nb3 {[%emt 0:00:47]} (21. Rxb8 $11 Rxb8 22. Nb3) 21... Rhc8 {[%emt 0:02:03][%cal Oc5e3] White must now prevent ...Bxe3!} 22. Bd3 {[%emt 0:02:51]} Bb5 $1 {[%emt 0:06:28]} 23. Bxb5 {[%emt 0:07:07]} axb5 {[%emt 0:01:38]} 24. Kf1 {[%emt 0:01:54]} b4 {[%emt 0:06:42]} 25. Rd1 {[%emt 0:08:48]} Rb7 {[%emt 0:07:10]} 26. Ra6 {[%emt 0:04:13]} Bb6 {[%emt 0:04:03]} 27. Ra4 {[%emt 0:01:10]} Bd8 $1 {[%emt 0:04:06]} 28. Ke2 {[%emt 0:02:11]} f5 {[%emt 0:02:52]} 29. Nd4 {[%emt 0:03:36]} ({Better is} 29. Rd4 $1 $15) 29... Kf6 {[%emt 0:00:54]} 30. Rb1 {[%emt 0:00:48]} Be7 31. Rb2 {[%emt 0:00:09]} Rc3 {[%emt 0:02:04]} 32. Nc2 {[%emt 0:01:41][%cal Rc2b4]} b3 {[%emt 0:01:17]} 33. Nd4 {[%emt 0:00:11]} Bc5 {[%emt 0:00:23]} 34. Kd2 {[%emt 0:02:48]} (34. Nf3 $17) 34... Bxd4 $19 {[%emt 0:00:52]} 35. Rxd4 {[%emt 0:00:21][%mdl 4096] Endgame KRR-KRR} (35. exd4 $142 Rbc7 36. Rb4) 35... Rbc7 {[%emt 0:00:08] Hoping for ...Rc2+.} 36. Ke1 {[%emt 0:01:06]} e5 {[%emt 0:01:30][%cal Be6e5,Be5e4][%mdl 32]} ({Avoid the trap} 36... Rc1+ $2 37. Rd1) 37. Rd1 {[%emt 0:01:31] [#]} e4 $1 {[%emt 0:00:24]} 38. Rdb1 {[%emt 0:01:51]} Rb7 {[%emt 0:00:05]} 39. Kd2 {[%emt 0:01:04]} Rd3+ {[%emt 0:00:02]} 40. Ke2 {[%emt 0:00:07]} Ke6 {[%emt 0:01:23] And now ...Kd6 would win.} 41. Rc1 {[%emt 0:00:01] [#]} Ra7 $2 {[%emt 0:00:52]} (41... Rb5 $1 $19 {Threatens to win with ...Kd5.} 42. Rc6+ Ke5) 42. Rc5 $15 {[%emt 0:00:53]} Rad7 {[%emt 0:00:37]} ({Reject} 42... Ra2 43. Rxa2 bxa2 44. Ra5 $11) (42... Ra1 $15 43. Rb5 Ra3) 43. Rb5 $11 {[%emt 0:00:18] The position is equal.} Ra7 {[%emt 0:00:25]} 44. R5xb3 {[%emt 0:00:28]} Rxb3 {[%emt 0:00:16]} 45. Rxb3 {[%emt 0:00:06] KR-KR} Ra2+ {[%emt 0:00:02]} 46. Ke1 {[%emt 0:00:10]} Kf6 {[%emt 0:00:52]} 47. h3 {[%emt 0:01:18]} Ra1+ {[%emt 0:00:20]} 48. Ke2 {[%emt 0:00:06]} Ra2+ {[%emt 0:00:02]} 49. Ke1 {[%emt 0:00:05]} Ra1+ {[%emt 0:01:18]} 50. Ke2 {[%emt 0:00:06]} Ra2+ {[%emt 0:00:06] Whites escaped into a draw.  Weighted Error Value: White=0.15 (very precise) /Black=0.17 (very precise)} 1/2-1/2

[Event "CCC-GM 2022"]
[Site "Ballerup"]
[Date "2022.05.25"]
[Round "1.3"]
[White "Nielsen, Viktor Haarmark"]
[Black "Brondt, Nicolai Kvist"]
[Result "1/2-1/2"]
[ECO "B10"]
[WhiteElo "2323"]
[BlackElo "2241"]
[Annotator "TA"]
[PlyCount "118"]
[EventDate "2022.05.25"]
[EventType "tourn"]
[EventCountry "DEN"]
[SourceTitle "playchess.com"]
[Source "ChessBase"]
[SourceQuality "1"]
[TimeControl "5400+30"]

{[%evp 9,118,26,24,27,19,14,26,15,31,4,27,27,14,0,3,14,5,0,7,-23,11,6,10,14,27,21,27,25,27,21,47,20,31,15,20,27,29,27,30,19,37,32,38,38,71,58,56,39,36,44,90,86,106,68,68,9,9,9,9,0,0,0,0,0,0,0,33,33,33,33,33,33,33,33,45,45,76,76,188,179,207,207,106,101,101,101,641,91,278,83,83,77,77,41,41,41,41,26,26,26,30,2,30,30,30,0,2,0,30,0,2]} 1. e4 {[%emt 0:00:02]} c6 {[%emt 0:15:49]} 2. Nf3 {[%emt 0:00:16]} d5 {[%emt 0:00:03]} 3. d3 {[%emt 0:00:04]} Bg4 {[%emt 0:00:05]} 4. h3 {[%emt 0:00:51]} Bxf3 5. Qxf3 {[%emt 0:00:15]} e6 {[%emt 0:00:07]} 6. g3 {[%emt 0:01:12] B10: Caro-Kann: 2 d3 and 2 c4.} Nd7 {[%emt 0:00:07]} 7. Bg2 {[%emt 0:01:08]} Ngf6 {[%emt 0:00:07]} 8. O-O {[%emt 0:01:20] White has an edge.} Bd6 {[%emt 0:00:06]} 9. Nc3 {[%emt 0:04:42]} Qb6 {[%emt 0:03:06] [#]} 10. a4 $146 {[%emt 0:14:28]} ({Predecessor:} 10. g4 h6 11. Qe2 dxe4 12. dxe4 e5 13. Rd1 Qc7 14. Qd3 Be7 15. Qg3 Bd6 16. b3 {½-½ (61) Motylev,A (2640)-Jaracz,P (2469) Lisbon 2020}) 10... a5 {[%emt 0:05:46]} 11. Kh1 {[%emt 0:04:02]} O-O {[%emt 0:02:50]} 12. Qe2 {[%emt 0:01:52]} Qa6 {[%emt 0:06:10]} 13. Re1 {[%emt 0:09:49]} Rfe8 {[%emt 0:05:43]} 14. Bg5 {[%emt 0:03:00]} dxe4 {[%emt 0:07:51]} 15. Nxe4 {[%emt 0:00:55]} Nxe4 {[%emt 0:02:36]} 16. Bxe4 {[%emt 0:02:36]} Be5 {[%emt 0:06:15]} 17. c3 {[%emt 0:02:16]} Bf6 {[%emt 0:02:08]} 18. Be3 {[%emt 0:01:40]} Nb6 {[%emt 0:02:49]} 19. h4 {[%emt 0:07:11]} Rad8 {[%emt 0:09:00]} 20. Qc2 {[%emt 0:06:12]} Nd5 {[%emt 0:02:32]} 21. Bd2 {[%emt 0:01:03]} Be7 {[%emt 0:01:59]} 22. d4 {[%emt 0:02:39]} Nf6 {[%emt 0:03:34]} 23. Bd3 {[%emt 0:00:36]} Qb6 {[%emt 0:00:49]} 24. Be3 {[%emt 0:01:19]} Qc7 {[%emt 0:02:09]} 25. Bf4 {[%emt 0:01:10]} Qb6 {[%emt 0:03:31]} 26. Be5 {[%emt 0:01:29]} g6 {[%emt 0:01:51]} 27. Kg2 {[%emt 0:03:46]} Nd7 {[%emt 0:03:24]} 28. h5 {[%emt 0:01:56][%cal Rh5g6]} Nxe5 {[%emt 0:01:46]} 29. Rxe5 {[%emt 0:03:25][%cal Rh5g6]} Kg7 {[%emt 0:06:01]} (29... Bf6 $14) 30. Rh1 $16 {[%emt 0:00:53]} Bf6 {[%emt 0:00:43]} 31. Re3 {[%emt 0:02:12] Rf3 is the strong threat.} Rd5 {[%emt 0:02:53]} 32. Rf3 {[%emt 0:00:37]} (32. Bc4 $14) 32... Rxh5 $11 {[%emt 0:00:32]} 33. Rxh5 {[%emt 0:01:20]} gxh5 {[%emt 0:00:01]} 34. Bxh7 {[%emt 0:00:32]} Rh8 {[%emt 0:00:55]} 35. Bd3 {[%emt 0:01:36]} h4 {[%emt 0:00:44]} 36. Qe2 {[%emt 0:02:46][%cal Of3f6] [#] Threatens to win with Rxf6!} Qd8 {[%emt 0:01:06]} 37. g4 {[%emt 0:02:05]} h3+ {[%emt 0:01:35]} 38. Rxh3 {[%emt 0:00:41]} Rxh3 {[%emt 0:00:02]} 39. Kxh3 $14 {[%emt 0:00:08][%mdl 4096] Endgame KQB-KQB} Qh8+ {[%emt 0:00:25]} 40. Kg2 {[%emt 0:00:10] Active counter play!} Qh6 {[%emt 0:00:45]} 41. Qe3 {[%emt 0:07:41]} Qxe3 {[%emt 0:00:34]} 42. fxe3 {[%emt 0:00:02] KB-KB} b6 {[%emt 0:01:16]} 43. b4 {[%emt 0:01:56]} c5 {[%emt 0:01:32]} (43... Bh4 $16) 44. dxc5 $18 {[%emt 0:01:21]} ({Don't play} 44. bxc5 $6 bxc5 45. dxc5 Kf8 $14) 44... Bxc3 {[%emt 0:00:36]} 45. cxb6 {[%emt 0:00:55]} Bxb4 {[%emt 0:00:08]} 46. b7 {[%emt 0:00:05]} Bd6 {[%emt 0:00:03]} 47. Kf3 {[%emt 0:02:24] Hoping for Ke4.} Kf8 $2 {[%emt 0:00:28][%mdl 8192] [#]} (47... f6 $16 48. Kg2 Kf8) 48. Ke4 $2 {[%emt 0:01:39]} (48. Bc4 $1 $18 {and the rest is easy.} Ke7 49. g5) 48... Ke7 $2 {[%emt 0:00:03]} (48... f6 $16) 49. Kd4 $2 {[%emt 0:00:05]} (49. g5 $18) 49... Kd7 $16 {[%emt 0:00:26]} 50. Kc4 {[%emt 0:00:23]} Kc6 {[%emt 0:00:29]} 51. Bh7 {[%emt 0:02:50]} f6 {[%emt 0:01:30]} 52. Bg8 {[%emt 0:01:33]} Kxb7 {[%emt 0:00:11]} 53. Kb5 {[%emt 0:00:04]} Bb4 {[%emt 0:00:13]} 54. Bxe6 {[%emt 0:00:04]} Kc7 {[%emt 0:00:12]} 55. Bf5 {[%emt 0:00:35]} Kd6 {[%emt 0:00:04]} 56. Kc4 {[%emt 0:00:10]} Ke5 {[%emt 0:00:04]} 57. Kb5 {[%emt 0:00:05]} Kd6 {[%emt 0:00:16]} 58. Kc4 {[%emt 0:00:05]} Ke5 {[%emt 0:00:01]} 59. Kb5 {[%emt 0:00:09]} Kd6 {[%emt 0:00:06] Black defended with fortune.  Weighted Error Value: White=0.31/Black=0.21 (precise)} 1/2-1/2

[Event "CCC-GM 2022"]
[Site "Ballerup"]
[Date "2022.05.25"]
[Round "1.4"]
[White "Komarov, Dimitri"]
[Black "Brunello, Sabino"]
[Result "1/2-1/2"]
[ECO "D38"]
[WhiteElo "2493"]
[BlackElo "2521"]
[Annotator "TA"]
[PlyCount "103"]
[EventDate "2022.05.25"]
[EventType "tourn"]
[EventCountry "DEN"]
[SourceTitle "playchess.com"]
[Source "ChessBase"]
[SourceQuality "1"]
[TimeControl "5400+30"]

{[%evp 14,103,19,11,18,13,12,4,11,-1,7,-23,-39,-18,-20,-36,-22,-22,-22,-20,-20,-16,-9,0,-4,-53,-1,-11,0,0,0,-8,-28,-49,-14,-39,-17,-29,0,0,13,13,0,-52,-54,-102,-93,-128,-100,-69,-84,-209,-32,-27,0,-18,0,0,0,-25,-44,-34,-18,-166,-160,-168,-51,-456,-470,-465,-466,-471,0,-69,0,-404,-207,-208,-172,-216,-220,-222,0,-331,-94,-218,-215,-211,-203,-207,4,16]} 1. d4 {[%emt 0:00:03]} Nf6 {[%emt 0:00:20]} 2. c4 {[%emt 0:00:05]} e6 {[%emt 0:00:03]} 3. Nf3 {[%emt 0:00:05]} d5 {[%emt 0:00:33]} 4. Nc3 {[%emt 0:00:07]} Bb4 {[%emt 0:00:05]} 5. Bg5 {[%emt 0:00:10]} h6 {[%emt 0:00:05]} 6. Bxf6 {[%emt 0:00:24]} Qxf6 {[%emt 0:00:02]} 7. Qa4+ {[%emt 0:00:49]} Nc6 {[%emt 0:00:10]} 8. e3 {[%emt 0:01:10]} O-O {[%emt 0:00:08] D38: Queen's Gambit Declined: Ragozin Defence (4 Nf3 Bb4).} 9. Rc1 {[%emt 0:00:35]} Rd8 {[%emt 0:00:43]} 10. Be2 {[%emt 0:01:47]} dxc4 {[%emt 0:27:15]} 11. Qb5 {[%emt 0:00:21]} Qe7 {[%emt 0:03:31][%cal Oe6e5]} 12. Bxc4 {[%emt 0:23:47] [#]} Bd7 $146 {[%emt 0:10:27]} ({Predecessor:} 12... Na5 13. a3 Bd7 14. Qxb4 Qxb4 15. axb4 Nxc4 16. b3 Nd6 17. Ne5 a5 18. bxa5 Rxa5 {0-1 (35) Mamedyarov,S (2782)-Aronian,L (2782) chess24.com INT 2021}) 13. Qh5 {[%emt 0:00:20]} Na5 {[%emt 0:00:17]} 14. Be2 {[%emt 0:08:02]} c5 {[%emt 0:00:36]} 15. O-O {[%emt 0:00:47]} cxd4 {[%emt 0:02:28]} 16. Nxd4 {[%emt 0:00:06]} Rac8 {[%emt 0:00:32]} 17. Ne4 {[%emt 0:05:20] Hoping for a3.} Nc6 {[%emt 0:01:00]} 18. Nb3 {[%emt 0:05:36]} Be8 {[%emt 0:06:41]} 19. Qh3 {[%emt 0:00:10]} (19. a3 $11 {should be considered.}) 19... f5 {[%emt 0:18:32]} ({Black should try} 19... a5 $15) 20. a3 $11 {[%emt 0:14:13]} Bxa3 {[%emt 0:00:17]} 21. bxa3 {[%emt 0:00:17] aiming for Nec5.} fxe4 {[%emt 0:00:06]} 22. Nc5 {[%emt 0:05:26]} Bf7 {[%emt 0:10:26]} 23. Qg3 {[%emt 0:16:25] Against Ne5} Kh7 {[%emt 0:02:25]} (23... Rd2 $5 {[%cal Rd2e2]} 24. Bb5 Rd5 25. Bxc6 bxc6 26. Nxe4 c5 $11) 24. Nxe4 {[%emt 0:02:25]} Bg6 {[%emt 0:03:18]} 25. Bf3 {[%emt 0:03:09]} Rd5 {[%emt 0:04:31]} 26. h4 {[%emt 0:02:52][%cal Bh2h4,Bh4h5][%mdl 32]} Qxa3 {[%emt 0:02:00]} 27. h5 {[%emt 0:01:27]} Bf7 {[%emt 0:02:29]} ({Don't play} 27... Bxh5 28. Nf6+ $1 {[%mdl 512]} gxf6 29. Bxd5 exd5 30. Qh3 $16) 28. Nc3 {[%emt 0:03:08]} (28. Qf4 $11 Rf8 29. Qc7) 28... Rg5 $15 {[%emt 0:01:35]} 29. Qf4 {[%emt 0:01:37]} (29. Qh2 $15 {deserves consideration.}) 29... Ne5 $1 $17 {[%emt 0:00:56]} ({Much weaker is} 29... Bxh5 $6 30. Ne4 Rf5 31. Qd6 Qxd6 32. Nxd6 Bxf3 33. Nxf5 Bxg2 34. Kxg2 exf5 35. Rc5 $11) 30. Be4+ {[%emt 0:00:05]} Kg8 {[%emt 0:00:09]} 31. Ne2 {[%emt 0:01:27]} Rf8 {[%emt 0:00:01]} 32. Nd4 {[%emt 0:00:13]} (32. Qh2 $17) 32... Bxh5 $2 {[%emt 0:03:03]} ({Better is} 32... Be8 $19 33. Qh2 Rxf2 $3 {[%mdl 512]}) 33. Qh2 $15 {[%emt 0:00:22]} Bf7 {[%emt 0:00:13]} 34. Bxb7 {[%emt 0:01:42]} Nd3 {[%emt 0:01:02]} 35. Rc7 {[%emt 0:01:13]} e5 {[%emt 0:00:47]} 36. Nf3 {[%emt 0:00:33]} (36. Rxf7 $5 Rxf7 37. Bd5 $15) 36... Rh5 {[%emt 0:00:11]} 37. Qg3 {[%emt 0:00:03][%cal Ob7d5]} Qd6 {[%emt 0:00:47] Against Bd5} 38. Rc8 {[%emt 0:00:32]} (38. Rxf7 $1 $11 Kxf7 39. Bc8) 38... Nc5 $1 $19 {[%emt 0:00:45]} 39. Rxf8+ {[%emt 0:00:31]} Kxf8 {[%emt 0:00:56]} (39... Qxf8 $19 40. Bc6 Qd6) 40. Bc8 {[%emt 0:01:14][%mdl 8192]} (40. Ba8 $1 $15) 40... Ne4 $1 {[%emt 0:00:10]} 41. Qg4 {[%emt 0:00:07] [#]} Nf6 {[%emt 0:00:16]} 42. Qg3 {[%emt 0:00:07]} Ne4 $2 {[%emt 0:00:11]} (42... Bc4 $19 43. Nxe5 Qxe5 44. Qxe5 Rxe5) 43. Qg4 $15 {[%emt 0:00:03]} Nf6 $40 {[%emt 0:00:02][%mdl 8320] Black has some attack.} (43... Nc3 $15 44. g3 e4) 44. Qg3 $19 {[%emt 0:00:02]} a5 {[%emt 0:00:14]} (44... Bc4 $142 45. Nxe5 Qxe5 46. Qxe5 Rxe5) 45. Bh3 {[%emt 0:00:31]} Qc7 {[%emt 0:01:24] Against Rc1} 46. Nd4 {[%emt 0:02:49]} Rg5 {[%emt 0:01:00]} 47. Qh2 {[%emt 0:00:01]} Qd6 $2 {[%emt 0:00:41]} (47... a4 $19 {Strongly threatening ...Qc3.} 48. Ne6+ Bxe6 49. Bxe6 Ke7) 48. Rc1 {[%emt 0:01:00][%mdl 8192]} (48. Nf3 $11 {and White has nothing to worry.}) 48... Kg8 $2 {[%emt 0:00:00]} (48... Qa3 $19 {[%cal Ra3c1]} 49. Rc8+ Ne8) 49. Nf3 {[%emt 0:01:09]} (49. f4 $17 Ng4 50. Bxg4 Rxg4 51. fxe5 (51. Rc8+ $2 Kh7 $19)) 49... Rh5 {[%emt 0:00:08]} 50. Qg3 {[%emt 0:00:12]} Kh7 {[%emt 0:00:58]} 51. Nh4 {[%emt 0:00:41] [#]} Qb4 $2 {[%emt 0:00:58]} ({Black should play} 51... g6 $1 $19 {White must now prevent ...a4.} 52. Rb1 Qc6) 52. Bf5+ {[%emt 0:00:26] Weighted Error Value: White=0.47/Black=0.55} 1/2-1/2